Cogmind - Beta 17 @@@ ROGUE MODE // 2026.07.24 @ 00:13:03 Player: Alicianrone Result: Destroyed by B-75 Beast with Magnetic Acceleration Cannon Performance ------------- Evolutions (4) 2000 Regions Visited (20) 4000 Robots Destroyed (367) 1835 Value Destroyed (13208) 13208 Prototype IDs (37) 740 Alien Tech Used (0) 0 Bonus (2353) 2353 TOTAL SCORE: 24136 Bonus ------- High Alert Combat Kills 1426 Follower Combat Kills 783 Entered Garrisons 200 Met Data Miner 300 Acquired ECA 300 Friendly Fire -656 Cogmind --------- Core Integrity 0/850 Matter 234/300 Energy 298/310 System Corruption 0% Temperature Cool (10) Movement Flying (27) Location -6/Lower Caves Parts ------- > --- POWER (1) -------- Fission Core > --- PROPULSION (5) --- Cesium-ion Thruster Impulse Thruster Impulse Thruster Impulse Thruster Impulse Thruster > --- UTILITY (6) ------ Improved Cooling System Advanced Sensor Array Advanced Signal Interpreter Improved Propulsion Shielding Hardened Light Armor Plating Hacking Suite > --- WEAPON (3) ------- Force Lance > --- INVENTORY (5) ---- Cesium-ion Thruster Advanced Sensor Array ECM Suite Experimental Thermal Shield Light Antimatter Cannon Peak State ------------ > --- POWER ------------ F-cell Engine > --- PROPULSION ------- Flexi-carbon Leg Multireflex Exoskeleton Enhanced Flexi-carbon Leg Enhanced Flexi-carbon Leg > --- UTILITY ---------- Experimental Cooling System High-capacity Storage Unit Improved Sensor Array Improved Signal Interpreter Core Analyzer Layered Medium Armor Plating > --- WEAPON ----------- Advanced Plasma Rifle Gauss Rifle Gauss Rifle > --- INVENTORY -------- Carbon-fiber Leg Flexi-carbon Leg Flexi-carbon Leg Improved Cooling System Compact Matter Pod Matter Compressor Encrypted Comm Array Advanced Particle Charger Experimental Thermal Shield System Restoration Module High-powered Tractor Beam Improved Trap Extractor Gauss Rifle Heavy Machine Gun Compact Mass Driver Long-range Missile Launcher Mini Smartbomb Launcher Impact Mace [Rating: 86] Favorites ----------- Power Cooled Ion Engine Engine Cooled Ion Engine Power Core Enhanced Nuclear Core Reactor Antimatter Reactor Propulsion Light Treads Treads Light Treads Leg Improved Titanium Leg Wheel Wheel Flight Unit Impulse Thruster Utility Huge Storage Unit Device Improved Cooling System Storage Huge Storage Unit Processor Core Analyzer Hackware Hacking Suite Protection Light Armor Plating Weapon Gauss Rifle Energy Gun Spread Laser Energy Cannon Heavy Plasma Cannon Ballistic Gun Gauss Rifle Ballistic Cannon Light Cannon Launcher Rocket Launcher Special Weapon Mining Laser Impact Weapon Power Maul Slashing Weapon Power Sword Piercing Weapon Force Lance Build | -11 -10 -10 -9 -9 -9 -8 -8 -8 -8 -7 -7 -7 -7 -7 -7 -6 -6 -6 -6 -6 ------- Run | Yrd Mat Min Mat Min Exi Min Mat Gar Mat Fac Was Fac Low Low Dat Pro Fac Was Fac Low Slots Evolved 8 | . . . 2 . . . 2 . . 2 . . . . . . 2 . . . Power . | . . . . . . . . . . . . . . . . . . . . . Propulsion 3 | . . . . . . . 1 . . 1 . . . . . . 1 . . . Utility 4 | . . . 1 . . . 1 . . 1 . . . . . . 1 . . . Weapon 1 | . . . 1 . . . . . . . . . . . . . . . . . Parts Attached 242 | 7 11 4 22 1 . 5 22 18 6 30 3 25 3 3 . 13 58 6 5 . Power 15 | 1 . 1 1 . . . . 2 . 2 . 1 . . . 1 4 1 1 . Engine 10 | 1 . 1 1 . . . . 2 . . . . . . . 1 4 . . . Core 4 | . . . . . . . . . . 2 . 1 . . . . . . 1 . Reactor 1 | . . . . . . . . . . . . . . . . . . 1 . . Propulsion 62 | 2 3 2 5 . . 2 6 5 1 5 1 9 1 3 . 6 11 . . . Treads 14 | . 2 1 3 . . 1 3 3 1 . . . . . . . . . . . Leg 26 | . . . . . . . . . . 4 1 7 1 3 . 6 4 . . . Wheel 14 | 2 1 1 1 . . 1 3 2 . 1 . 2 . . . . . . . . Hover . | . . . . . . . . . . . . . . . . . . . . . Flight 8 | . . . 1 . . . . . . . . . . . . . 7 . . . Utility 87 | 2 3 1 7 1 . 1 7 5 2 13 2 5 2 . . 3 25 4 4 . Device 32 | 1 . 1 1 1 . . 3 1 1 3 . 3 1 . . 2 12 1 1 . Storage 9 | 1 1 . 1 . . . . . . 2 . . . . . . 3 1 . . Processor 16 | . 1 . 1 . . 1 . 2 . 3 . 1 1 . . . 4 . 2 . Hackware 6 | . . . 1 . . . 1 . . 1 . . . . . . 2 . 1 . Protection 24 | . 1 . 3 . . . 3 2 1 4 2 1 . . . 1 4 2 . . Artifact . | . . . . . . . . . . . . . . . . . . . . . Weapon 78 | 2 5 . 9 . . 2 9 6 3 10 . 10 . . . 3 18 1 . . Energy Gun 12 | . . . 1 . . 1 3 1 1 2 . 1 . . . . 2 . . . Energy Cannon 4 | . . . 1 . . . 1 . . . . . . . . 1 1 . . . Ballistic Gun 34 | 2 . . 3 . . . 3 4 1 5 . 5 . . . 2 9 . . . Ballistic Cannon 11 | . 4 . 1 . . . 1 1 . . . 2 . . . . 2 . . . Launcher 10 | . . . 3 . . 1 . . 1 3 . . . . . . 2 . . . Special Weapon 1 | . 1 . . . . . . . . . . . . . . . . . . . Impact Weapon 3 | . . . . . . . 1 . . . . 2 . . . . . . . . Slashing Weapon 2 | . . . . . . . . . . . . . . . . . 2 . . . Piercing Weapon 1 | . . . . . . . . . . . . . . . . . . 1 . . Special Melee Weapon . | . . . . . . . . . . . . . . . . . . . . . Unidentified Prototypes 23 | . . . 3 . . . 2 . 1 3 . 3 . . . 2 7 1 1 . Corrupted Parts 6 | . . . . . . . . . . . 1 . . . . 5 . . . . System Corruption 36 | . . . . . . . . . . . 8 . . . . 28 . . . . Parts Lost 65 | . 1 4 3 . . 1 6 5 1 2 2 7 1 1 . 12 19 . . . Power 7 | . . 1 . . . . . 1 . 1 . 1 . . . 1 2 . . . Propulsion 20 | . . 2 1 . . 1 2 . . 1 1 3 . . . 5 4 . . . Utility 18 | . 1 1 2 . . . 1 2 . . . 1 1 1 . 3 5 . . . Weapon 20 | . . . . . . . 3 2 1 . 1 2 . . . 3 8 . . . Highest Loss Streak 11 | . 1 2 1 . . 1 5 3 1 1 2 5 1 1 . 6 11 . . . To Critical Strikes 2 | . . . . . . . . . . . . 1 . . . . 1 . . . Average Backups 19 | 1 13 19 22 24 25 24 22 22 23 23 14 14 18 18 18 13 14 5 5 4 Power . | . . . . 1 1 1 . . 1 1 1 . . 1 1 . . . . . Propulsion 3 | 1 3 3 4 4 4 3 4 5 4 4 . . 2 2 2 1 1 1 1 1 Utility 8 | . 2 6 7 9 9 9 10 10 10 12 10 10 7 7 8 7 7 3 3 3 Weapon 6 | . 5 9 10 10 11 10 7 6 6 5 2 3 7 6 6 4 3 . 1 . Tool/Special . | . . . . . . . . . . . . . . . . . . . . . Unused Backups 51 | . . 1 11 . . 1 6 6 3 8 . . 2 . . 1 7 2 . 3 Power 3 | . . 1 . . . . 1 . . 1 . . . . . . . . . . Propulsion 16 | . . . 1 . . . 1 4 1 2 . . 1 . . 1 4 . . 1 Utility 14 | . . . 2 . . 1 1 1 . 3 . . . . . . 3 1 . 2 Weapon 18 | . . . 8 . . . 3 1 2 2 . . 1 . . . . 1 . . Tool/Special . | . . . . . . . . . . . . . . . . . . . . . Average Slot Usage (%) 92 | . 99 97 97 100 100 99 95 88 89 85 92 93 88 85 73 92 87 92 86 86 Engine 7 | . 14 14 11 11 11 11 9 8 9 1 . . . . . 6 5 5 5 . Core 1 | . . . . . . . . . . 5 7 6 7 7 7 . . . 1 6 Treads 6 | . 13 11 10 11 11 12 17 9 9 . . . . . . . . . . . Leg 8 | . . . . . . . . . . 3 28 27 30 29 30 26 21 . . . Wheel 7 | . 14 16 11 11 11 9 9 9 9 13 . . . . . . . . . . Flight 1 | . . . . . . . . . . . . . . . . . 5 33 33 33 Device 7 | . 11 11 7 . . . 8 8 8 6 . 7 8 . . 5 9 26 14 13 Storage 8 | . 14 14 11 11 11 11 9 9 9 7 7 7 7 7 7 7 4 . . . Processor 7 | . 1 . . . . 8 9 4 9 14 15 19 15 15 15 15 11 6 8 6 Hackware 3 | . . . 5 11 11 1 5 . . 5 7 2 . . . . 3 . 2 6 Protection 6 | . . . 7 10 11 11 3 13 9 3 6 1 3 7 7 6 4 3 13 13 Energy Gun 4 | . . . 8 10 11 9 3 9 8 4 10 . . . . . 1 2 . . Ballistic Gun 12 | . 2 . 14 22 22 22 14 13 17 17 7 12 9 16 4 18 9 . . . Ballistic Cannon 4 | . 24 28 5 . . . 3 1 . . . 1 . . . . . 5 . . Peak Build Rating 86 | 7 9 12 23 25 23 23 36 42 45 59 56 50 53 53 48 63 86 81 71 74 Average Rating 36 | 5 8 10 19 23 23 22 32 38 42 55 50 43 45 44 37 51 69 74 67 67 On Entrance 37 | . 7 9 10 23 23 23 23 36 40 45 55 41 44 48 48 48 60 81 65 67 Avg Prop Armor Cover (%) 8 | . 10 10 8 8 8 7 14 6 7 6 . 9 . . . . . . . . Naked Turns 9 | . . . . . . . . . . . . . . . . . 9 . . . Heaviest Build 118 | 15 92 96 102 100 100 101 114 118 107 115 68 72 64 63 63 83 85 36 30 26 Greatest Support 112 | 20 20 20 20 10 10 40 60 28 28 80 80 70 62 63 63 91 112 33 33 33 Greatest Overweight (x) 11 | . 9 9 10 9 9 10 11 11 3 3 . 6 1 . . 2 2 1 . . Average Overweight (x) 3 | . 7 7 9 9 9 8 8 3 3 . . . . . . . . . . . Largest Inventory Capacity 25 | 8 25 25 25 25 25 25 25 25 25 25 20 20 20 20 20 20 20 5 5 5 Average Capacity 22 | 7 22 25 25 25 25 25 25 25 25 23 20 20 20 20 20 20 16 5 5 5 Most Carried 25 | 4 19 23 25 25 25 25 25 25 25 25 15 17 20 20 19 17 20 5 5 5 Average Carried 19 | 2 13 19 22 24 25 24 23 23 24 23 14 14 18 18 18 13 14 4 4 4 Final Capacity 25 | 8 25 25 25 25 25 25 25 25 25 20 20 20 20 20 20 20 5 5 5 5 Final Carried 25 | 4 18 20 24 25 25 25 25 24 25 15 13 13 20 18 18 13 5 5 5 5 Class Distribution -------------------- 27% | Mutant 22% | Tank 14% | Scavenger-Gunner 5% | Gunner 5% | Sprinter 5% | Assassin 4% | Skirmisher 4% | Scavenger-Skirmisher 3% | Scavenger-Tank 3% | Scavenger-Mutant Dominant Class ---------------- Mutant | -10/Materials Mutant | -10/Mines Tank | -9/Materials Tank | -9/Mines Tank | -9/Exiles Gunner | -8/Mines Mutant | -8/Materials Scavenger-Gunner | -8/Garrison Scavenger-Gunner | -8/Materials Scavenger-Gunner | -7/Factory Gunner | -7/Waste Assassin | -7/Factory Mutant | -7/Lower Caves Mutant | -7/Lower Caves Mutant | -7/Data Miner Scavenger-Gunner | -6/Proximity Caves Scavenger-Mutant | -6/Factory Sprinter | -6/Waste Sprinter | -6/Factory Sprinter | -6/Lower Caves Resources | -11 -10 -10 -9 -9 -9 -8 -8 -8 -8 -7 -7 -7 -7 -7 -7 -6 -6 -6 -6 -6 ----------- Run | Yrd Mat Min Mat Min Exi Min Mat Gar Mat Fac Was Fac Low Low Dat Pro Fac Was Fac Low Matter Collected 12119 | 253 491 394 881 84 . 321 1300 996 376 1616 . 1571 398 217 . 817 1972 372 60 . Remotely 740 | . . . . . . . . . . . . 304 . . . . 436 . . . Salvage Created 15286 | 56 477 221 1308 106 . 163 1775 1492 1076 1860 . 1815 427 173 . 1296 2400 68 573 . Parts 771 | 8 24 11 105 7 . 29 95 58 49 89 . 85 9 10 . 47 109 2 34 . Haulers Intercepted 24 | . 2 . 6 . . . 5 . 3 2 . 2 . . . . 2 . 2 . Recyclers Shooed 13 | . . . . . . . 3 . . 1 . 3 . . . . 6 . . . Parts Field Recycled . | . . . . . . . . . . . . . . . . . . . . . Retrieved Matter . | . . . . . . . . . . . . . . . . . . . . . Parts Self-Destructed 32 | . . . . . . . . . . . . . 2 8 . 22 . . . . Prevented 24 | . . . . . . . . . . . . . 1 4 . 19 . . . . Parts Restored . | . . . . . . . . . . . . . . . . . . . . . Kills | -11 -10 -10 -9 -9 -9 -8 -8 -8 -8 -7 -7 -7 -7 -7 -7 -6 -6 -6 -6 -6 ------- Run | Yrd Mat Min Mat Min Exi Min Mat Gar Mat Fac Was Fac Low Low Dat Pro Fac Was Fac Low Combat Hostiles Destroyed 244 | . 12 8 31 5 . 8 27 18 12 33 . 27 7 3 . 20 33 . . . Melee 4 | . . . . . . . . . . . . 2 1 . . . 1 . . . Guns 121 | . 3 . 9 2 . 2 15 12 12 26 . 14 3 3 . 6 14 . . . Cannons 40 | . 9 8 10 . . . 4 3 . . . 3 . . . 1 2 . . . AOE 63 | . . . 12 3 . 6 8 3 . 7 . 3 . . . 10 11 . . . Classes Destroyed 21 | 1 5 2 4 . . . 1 3 . 1 . . . 1 . . 3 . . . Worker 19 | . . . 4 . . 1 4 . 1 2 . 2 . . . . 5 . . . Builder 15 | . . . 1 . . 4 1 . 1 1 . 4 . . . . 3 . . . Tunneler 8 | 3 . . . . . 1 . . 1 . . 1 . . . . 2 . . . Hauler 24 | . 2 . 6 . . . 5 . 3 2 . 2 . . . . 2 . 2 . Recycler 14 | . . 1 1 . . . 4 . 1 . . 2 . . . . 3 . 2 . Minesweeper 1 | . . . . . . . . . . . . . . 1 . . . . . . Mechanic 3 | . . . . . . . 2 . . . . 1 . . . . . . . . Operator 11 | . 1 . 3 . . . . . 1 2 . 1 . . . . 1 . 2 . Watcher 23 | . 3 . 5 . . . 4 . 2 2 . 1 . . . . 3 . 3 . Swarmer 39 | . 3 . 14 3 . 3 6 2 . 4 . . . . . 2 2 . . . Grunt 123 | . 9 6 9 2 . 5 18 7 8 15 . 17 2 3 . 11 11 . . . Brawler 3 | . . . 1 . . . . . . . . 1 . . . 1 . . . . Duelist 4 | . . . . . . . . 1 . . . . . . . 3 . . . . Protector 1 | . . . . . . . . . . . . . . . . . 1 . . . Sentry 33 | . . . 7 . . . 3 5 3 9 . 4 . . . 2 . . . . Demolisher 3 | . . 2 . . . . . 1 . . . . . . . . . . . . Specialist 3 | . . . . . . . . . . . . . . . . . 3 . . . Hunter 17 | . . . . . . . . 2 1 2 . 2 . . . . 10 . . . Programmer 13 | . . . . . . . . . . 3 . 3 . . . 1 6 . . . Heavy 1 | . . . . . . . . . . . . . . . . . 1 . . . Behemoth 2 | . . . . . . . . 1 . . . . 1 . . . . . . . Enhanced Grunt 1 | . . . . . . . . . . . . . . . . 1 . . . . Thug 1 | . . . . . . . . . . . . . 1 . . . . . . . Savage 1 | . . . . . . . . . 1 . . . . . . . . . . . Butcher 3 | . . . . . . . . . . . . . 3 . . . . . . . Guerrilla 1 | . . . . . . . . 1 . . . . . . . . . . . . Best Kill Streak 13 | 1 3 3 5 3 . 9 13 5 7 5 . 7 2 3 . 6 12 . 4 . Combat Bots Only 9 | . 3 2 4 3 . 5 7 5 3 4 . 6 2 3 . 6 9 . . . Max Kills in Single Turn 4 | 1 2 1 4 2 . 3 4 3 2 3 . 2 1 1 . 4 3 . 1 . Gunslinging 1 | . . . . . . . 1 1 . . . . . . . . . . . . Exploded 4 | . . . 3 2 . 3 3 3 . 2 . 2 . . . 4 3 . . . Melee 1 | . . . . . . . . . . . . 1 1 . . . 1 . . . Uniques/NPCs Destroyed . | . . . . . . . . . . . . . . . . . . . . . Combat | -11 -10 -10 -9 -9 -9 -8 -8 -8 -8 -7 -7 -7 -7 -7 -7 -6 -6 -6 -6 -6 -------- Run | Yrd Mat Min Mat Min Exi Min Mat Gar Mat Fac Was Fac Low Low Dat Pro Fac Was Fac Low Hostile Shots Fired 1550 | . 47 30 76 7 . 31 99 107 26 286 3 230 18 16 . 196 371 . 5 2 Missed 532 | . 15 11 23 3 . 17 27 36 9 110 1 78 6 6 . 69 119 . 1 1 Hits 1018 | . 32 19 53 4 . 14 72 71 17 176 2 152 12 10 . 127 252 . 4 1 Melee 17 | . . . . . . . . . . . 2 3 2 4 . 6 . . . . Projectile 1001 | . 32 19 53 4 . 14 72 71 17 176 . 149 10 6 . 121 252 . 4 1 AOE 8 | . . 7 . . . . . 1 . . . . . . . . . . . . Critical Strikes 40 | . . 1 2 . . 1 4 4 . 3 . 4 1 . . 8 12 . . . Part Disruptions 4 | . . . . . . . . . . . . 2 . 2 . . . . . . Damage Taken 14254 | . 334 463 694 42 . 276 1094 1655 338 1195 92 1385 251 242 . 1646 4439 . 75 33 Core 1942 | . 28 74 120 10 . 18 94 193 31 131 . 149 24 15 . 185 799 . 38 33 Absorbed by Shields 1558 | . . . . . . . 65 . . 479 . 268 24 . . 577 145 . . . Ignored by Resistances 677 | . . . . . . . . 197 . 97 . 106 6 . . 9 262 . . . Core Remaining (%) 58 | 100 . 59 . . . 63 . . 42 . . . . . . 28 . . . . Volleys Fired 785 | 9 48 29 82 5 . 22 88 116 39 94 3 77 4 14 . 58 89 . . 8 Largest 3 | 2 2 2 3 3 . 2 3 3 3 3 3 3 3 2 . 3 3 . . 1 Hottest 156 | 40 100 60 156 115 . 50 100 153 108 150 150 86 84 56 . 148 148 . . 51 Shots Fired 1715 | 18 91 58 207 11 . 26 182 183 104 262 9 189 13 24 . 124 206 . . 8 Gun 1295 | 18 38 . 127 9 . 8 155 115 102 255 9 163 13 20 . 102 161 . . . Cannon 326 | . 52 58 68 . . . 18 63 . . . 20 . . . 8 31 . . 8 Launcher 93 | . . . 12 2 . 18 9 5 2 7 . 6 . 4 . 14 14 . . . Special 1 | . 1 . . . . . . . . . . . . . . . . . . . Kinetic 1325 | 18 90 58 118 6 . 8 154 97 72 204 3 183 13 20 . 102 171 . . 8 Thermal 216 | . 1 . 77 3 . . . 49 . 51 6 . . . . 8 21 . . . Explosive 72 | . . . 12 2 . 18 9 5 2 5 . 4 . 4 . . 11 . . . Electromagnetic 102 | . . . . . . . 19 32 30 2 . 2 . . . 14 3 . . . Robot Hit Streak 35 | 5 11 4 9 10 . 5 17 35 11 23 5 8 3 10 . 17 12 . . . Robot Miss Streak 7 | 5 3 2 5 5 . 3 5 5 3 5 2 3 1 3 . 5 7 . . . Penetration Max 2 | . . . . . . . . 1 1 1 . 1 . . . . 2 . . . Secondary Targets 28 | . . . . . . . 3 5 3 3 . 4 1 1 . 3 5 . . . Max Gunslinging Chain 2 | . . . . . . . 1 2 1 1 . 1 1 1 . 1 1 . . . Shots Hit Robots 1123 | 8 57 30 119 8 . 15 127 156 67 151 6 122 15 13 . 68 148 2 11 . Core Hits 697 | 3 25 12 99 10 . 25 86 75 43 84 . 60 6 8 . 43 109 . 9 . Critical Kills 8 | . . . . . . . . 2 . . . 3 1 . . 1 1 . . . Critical Parts Destroyed 31 | . . . . . . . . 2 1 2 . 7 4 1 . 3 11 . . . Critical Strikes 52 | . 1 3 . . . . 2 8 1 3 . 11 5 1 . 4 12 1 . . Burn 1 | . . . . . . . . . . 1 . . . . . . . . . . Meltdown 3 | . . . . . . . . 2 . . . . . . . 1 . . . . Destroy 15 | . . . . . . . . 1 1 2 . 3 . 1 . 3 4 . . . Blast 11 | . 1 3 . . . . 2 4 . . . 1 . . . . . . . . Smash 21 | . . . . . . . . 1 . . . 7 5 . . . 8 . . . Sever 1 | . . . . . . . . . . . . . . . . . . 1 . . Melee Attacks 124 | . . . . . . . 2 7 . 1 . 26 14 . . . 37 5 19 13 Impact 75 | . . . . . . . 2 7 . 1 . 26 14 . . . 25 . . . Slashing 17 | . . . . . . . . . . . . . . . . . 12 5 . . Piercing 32 | . . . . . . . . . . . . . . . . . . . 19 13 Sneak Attacks 15 | . . . . . . . 2 . . 1 . 3 . . . . 5 . 4 . Combat Hostiles 1 | . . . . . . . . . . . . 1 . . . . . . . . Follow-up Attacks . | . . . . . . . . . . . . . . . . . . . . . Martial Strikes 1 | . . . . . . . . . . . . . . . . . 1 . . . Damage Inflicted 35905 | 109 882 576 2669 341 . 1271 4115 4771 1741 3957 219 3692 637 421 . 2817 6648 160 879 . Guns 16339 | 109 351 . 1246 123 . 109 1932 1736 1262 3257 219 2152 146 238 . 1204 2255 . . . Cannons 5538 | . 531 576 632 . . . 632 2360 . . . 169 . . . 102 536 . . . Explosions 9676 | . . . 791 218 . 1162 1398 266 479 582 . 437 . 183 . 1511 2649 . . . Melee 4336 | . . . . . . . 153 409 . 118 . 918 491 . . . 1208 160 879 . Ramming 16 | . . . . . . . . . . . . 16 . . . . . . . . Kinetic 16622 | 109 882 576 935 83 . 109 2277 2337 775 2201 67 2321 146 238 . 1204 2362 . . . Thermal 4997 | . . . 943 40 . . 233 1356 197 1056 152 . . . . 444 576 . . . Explosive 6906 | . . . 791 218 . 1162 1165 217 282 469 . 284 . 183 . . 2135 . . . Electromagnetic 3028 | . . . . . . . 287 452 487 113 . 153 . . . 1169 367 . . . Impact 2950 | . . . . . . . 153 409 . 118 . 918 491 . . . 861 . . . Slashing 507 | . . . . . . . . . . . . . . . . . 347 160 . . Piercing 879 | . . . . . . . . . . . . . . . . . . . 879 . Highest Corruption 55 | . 1 1 . . . . . . . 5 25 26 26 27 27 55 6 5 . . Average Corruption 15 | . 1 1 . . . . . . . 3 14 23 26 26 27 33 5 3 . . Corruption Purged 11 | . . . . . . . . . . . . 5 . . . . 1 5 . . Corruption Blocked . | . . . . . . . . . . . . . . . . . . . . . Effects 298 | . 3 14 . . . . . . . 24 7 85 63 37 5 43 17 . . . Message Errors 70 | . . 4 . . . . . . . 8 2 19 14 6 2 12 3 . . . Matter Fused 72 | . 2 1 . . . . . . . 6 3 19 17 7 . 11 6 . . . Heat Flow Errors 27 | . 1 3 . . . . . . . 2 . 7 5 3 1 3 2 . . . Energy Discharges 40 | . . 1 . . . . . . . 3 . 10 11 9 1 3 2 . . . Parts Rejected 5 | . . . . . . . . . . 1 1 2 . 1 . . . . . . Parts Fused 2 | . . 1 . . . . . . . . . 1 . . . . . . . . Data Loss (minor) 27 | . . 2 . . . . . . . . 1 9 8 3 1 3 . . . . Data Loss (major) 11 | . . 2 . . . . . . . 1 . 4 2 2 . . . . . . Misfires 17 | . . . . . . . . . . 2 . 6 1 4 . 3 1 . . . Alerts 6 | . . . . . . . . . . . . 1 3 . . . 2 . . . Misdirections 3 | . . . . . . . . . . . . 1 2 . . . . . . . Weapon Failures 18 | . . . . . . . . . . 1 . 6 . 2 . 8 1 . . . Overload Shots 25 | . . . . . . . . . . 19 6 . . . . . . . . . Effects 3 | . . . . . . . . . . 3 . . . . . . . . . . Heat Surge 2 | . . . . . . . . . . 2 . . . . . . . . . . Short Circuit 1 | . . . . . . . . . . 1 . . . . . . . . . . Overflow Damage 1698 | . 6 13 10 21 . 3 147 137 15 . . 453 224 . . 38 557 71 3 . Projectiles 79 | . 6 13 . . . . 30 30 . . . . . . . . . . . . Explosions 223 | . . . 10 21 . 3 117 . 15 . . . . . . 38 19 . . . Melee 1396 | . . . . . . . . 107 . . . 453 224 . . . 538 71 3 . Knockbacks 24 | . 6 8 2 . . . . . . . . 6 . . . . 2 . . . Impact 5 | . . . . . . . . . . . . 4 . . . . 1 . . . Kinetic 15 | . 6 7 2 . . . . . . . . . . . . . . . . . Secondary 4 | . . 1 . . . . . . . . . 2 . . . . 1 . . . Self-Inflicted Damage 594 | . . . 55 . . 44 189 105 79 . . 10 . 80 . 32 . . . . Shots 20 | . . . 3 . . 2 4 3 3 . . 1 . 2 . 2 . . . . Rammed . | . . . . . . . . . . . . . . . . . . . . . Targets Rammed 2 | . . . . . . . . . . . . 2 . . . . . . . . Kicked 2 | . . . . . . . . . . . . 2 . . . . . . . . Crushed . | . . . . . . . . . . . . . . . . . . . . . Highest Temperature 478 | 6 203 227 213 175 . 21 278 318 1 307 270 291 198 250 230 478 357 100 35 . Average Temperature 67 | 6 35 56 57 94 . 7 116 134 1 54 140 81 63 91 117 101 43 41 15 . Received Heat Transfer 4050 | . 120 129 204 9 . 126 475 649 117 392 . 398 70 54 . 724 547 . 36 . Effects 6 | . . . . . . . 2 1 . . . 1 . . 1 1 . . . . Energy Bleed 3 | . . . . . . . 2 . . . . . . . . 1 . . . . Interference 2 | . . . . . . . . . . . . 1 . . 1 . . . . . Short Circuit 1 | . . . . . . . . 1 . . . . . . . . . . . . Siege Activations . | . . . . . . . . . . . . . . . . . . . . . Martial Activations 4 | . . . . . . . . . . . . . . . . . 4 . . . Total Turns 198 | . . . . . . . . . . . . . . . . . 198 . . . Longest Duration 149 | . . . . . . . . . . . . . . . . . 149 . . . Shielding Activations . | . . . . . . . . . . . . . . . . . . . . . Robots Disrupted . | . . . . . . . . . . . . . . . . . . . . . Combat Hostiles . | . . . . . . . . . . . . . . . . . . . . . Robots Corrupted 20 | . . . . . . . . 2 . . . 7 3 . . 2 6 . . . Combat Hostiles 16 | . . . . . . . . 1 . . . 5 3 . . 2 5 . . . Parts Fried 18 | . . . . . . . . . 1 . . 5 4 . . 3 5 . . . Impact Corruptions 32 | . . . . . . . . 2 . . . 12 5 . . . 13 . . . Robots Melted 7 | . . . . . . . . 6 . . . . . . . 1 . . . . Combat Hostiles 1 | . . . . . . . . . . . . . . . . 1 . . . . Parts Melted 11 | . . . 1 . . . . 5 1 3 . . . . . 1 . . . . Heat Transferred 7955 | . . . 1439 50 . . 200 2717 250 1749 200 . . . . 550 800 . . . Parts Sabotaged . | . . . . . . . . . . . . . . . . . . . . . Parts Stolen 3 | . . . . . . . . . . . . . . 3 . . . . . . Parts Stripped . | . . . . . . . . . . . . . . . . . . . . . Power Chain Reactions 15 | . . . . . . . 3 1 4 1 . . . . . 5 1 . . . Alert | -11 -10 -10 -9 -9 -9 -8 -8 -8 -8 -7 -7 -7 -7 -7 -7 -6 -6 -6 -6 -6 ------- Run | Yrd Mat Min Mat Min Exi Min Mat Gar Mat Fac Was Fac Low Low Dat Pro Fac Was Fac Low Maximum Alert Level 5 | . . . 1 . . 1 2 5 4 3 1 1 . . . . 2 1 . . Low Security (%) 53 | 100 100 100 59 100 . 57 11 . . . 85 72 . . . . 65 56 100 . Level 1 13 | . . . 40 . . 42 26 7 . . 14 27 . . . . 3 43 . . Level 2 20 | . . . . . . . 61 26 . 90 . . . . . . 30 . . . Level 3 5 | . . . . . . . . 14 72 9 . . . . . . . . . . Level 4 5 | . . . . . . . . 39 27 . . . . . . . . . . . Level 5 1 | . . . . . . . . 12 . . . . . . . . . . . . High Security . | . . . . . . . . . . . . . . . . . . . . . Max Security . | . . . . . . . . . . . . . . . . . . . . . Peak Influence 1938 | 5 120 53 350 121 . 270 546 1938 1187 748 206 370 . . . . 683 238 169 . Initial 944 | . . 13 . 56 . . 57 349 944 525 206 82 . . . . 101 238 91 . Average 321 | . 30 5 161 16 . 147 375 1048 993 532 170 164 . . . . 240 187 111 . Influence Increases 9713 | 15 413 205 1093 135 . 360 999 1659 547 985 2 888 110 75 . 582 1433 3 209 . Destroy 0b10 Robot/C 5240 | . 240 160 620 100 . 200 540 660 280 660 . 540 60 60 . 460 660 . . . Destroy 0b10 Robot/NC 635 | 15 30 5 100 . . 30 100 40 50 45 . 70 . 5 . . 100 . 45 . Destroy Leader 1104 | . 60 40 182 20 . 40 118 40 70 178 . 146 20 10 . 40 130 . 10 . Allied During Kill 367 | . . . . . . 17 . 255 36 . . . . . . 52 7 . . . Trap Triggered on 0b10 10 | . . . . . . . . . . . . . . . . . 10 . . . Successful Hack 166 | . 34 . 14 . . . 10 7 8 12 . 5 . . . . 16 . 60 . Disable Machine 555 | . 30 . 30 . . . 90 15 30 45 . 60 . . . . 240 . 15 . Anti-Garrison Action 550 | . . . . . . . . 550 . . . . . . . . . . . . Destroy Structure 561 | . 4 . 87 15 . 73 111 92 43 30 2 22 . . . . 75 3 4 . Partial Spotted 75 | . . . . . . . . . . . . . . . . . 30 . 45 . Lose Combat Pursuer 450 | . 15 . 60 . . . 30 . 30 15 . 45 30 . . 30 165 . 30 . Influence Decreases 9703 | 15 378 240 948 280 . 212 609 259 1330 1551 473 655 461 45 30 420 915 552 180 150 Entered New Map 3198 | . . 22 . 89 . . 91 189 994 630 383 36 131 . 30 . 61 442 40 60 Time Decay 5135 | 15 368 198 618 191 . 162 458 . 286 601 70 549 320 45 . 310 604 110 140 90 Lost Part 610 | . 10 20 30 . . 10 60 50 10 20 20 70 10 . . 110 190 . . . Lost Ally 160 | . . . . . . 40 . 20 40 . . . . . . . 60 . . . Purge Threat 600 | . . . 300 . . . . . . 300 . . . . . . . . . . Squads Dispatched 59 | . 1 . 4 . . 1 3 . 2 17 . 8 . . . 1 15 . 7 . Investigation 15 | . 1 . 1 . . . 1 . 1 5 . 1 . . . . 2 . 3 . Extermination 11 | . . . . . . . . . . 4 . 4 . . . . 2 . 1 . Reinforcement 26 | . . . 3 . . 1 2 . 1 3 . 3 . . . . 10 . 3 . Assault 2 | . . . . . . . . . . . . . . . . 1 1 . . . Garrison 5 | . . . . . . . . . . 5 . . . . . . . . . . Intercept . | . . . . . . . . . . . . . . . . . . . . . Searches Triggered . | . . . . . . . . . . . . . . . . . . . . . Construction Impeded 3 | . . . 1 . . 1 . . . . . 1 . . . . . . . . Haulers Reinforced 4 | . . . . . . . . . . . . 2 . . . . 2 . . . Active Scanning Responses . | . . . . . . . . . . . . . . . . . . . . . Cargo Convoy Interrupts 2 | . . . . . . . . . . 1 . . . . . . 1 . . . Stealth | -11 -10 -10 -9 -9 -9 -8 -8 -8 -8 -7 -7 -7 -7 -7 -7 -6 -6 -6 -6 -6 --------- Run | Yrd Mat Min Mat Min Exi Min Mat Gar Mat Fac Was Fac Low Low Dat Pro Fac Was Fac Low Distress Signals 19 | . 2 . 3 . . . 3 . 3 3 . 2 . . . . 2 . 1 . Communications Jammed . | . . . . . . . . . . . . . . . . . . . . . Distress Signals . | . . . . . . . . . . . . . . . . . . . . . Times Spotted 374 | . 19 14 43 5 . 9 36 31 19 42 6 32 9 7 . 28 63 . 10 1 Peak Tracking Total 20 | . 6 20 5 3 . 4 4 6 5 4 6 6 4 3 . 9 10 . 3 . Tactical Retreats 24 | . 1 . 2 . . . 2 . 2 1 . 3 2 . . 2 8 . 1 . Traps | -11 -10 -10 -9 -9 -9 -8 -8 -8 -8 -7 -7 -7 -7 -7 -7 -6 -6 -6 -6 -6 ------- Run | Yrd Mat Min Mat Min Exi Min Mat Gar Mat Fac Was Fac Low Low Dat Pro Fac Was Fac Low Traps Triggered 17 | . 2 1 2 . . . 1 3 1 3 . . . . . . 4 . . . Indirectly . | . . . . . . . . . . . . . . . . . . . . . Trap Hack Attempts . | . . . . . . . . . . . . . . . . . . . . . Triggered . | . . . . . . . . . . . . . . . . . . . . . Disarmed . | . . . . . . . . . . . . . . . . . . . . . Reprogrammed . | . . . . . . . . . . . . . . . . . . . . . Reused 7 | . . . . . . . . . . . . . 5 1 . . 1 . . . Traps Extracted . | . . . . . . . . . . . . . . . . . . . . . Installed 7 | . . . . . . . . . . . . . 5 1 . . 1 . . . Triggered 4 | . . . . . . . . . . . . . 2 1 . . 1 . . . Most Traps Carried 5 | . . . . 5 5 5 5 5 5 5 5 5 5 4 3 3 3 . . . Machines | -11 -10 -10 -9 -9 -9 -8 -8 -8 -8 -7 -7 -7 -7 -7 -7 -6 -6 -6 -6 -6 ---------- Run | Yrd Mat Min Mat Min Exi Min Mat Gar Mat Fac Was Fac Low Low Dat Pro Fac Was Fac Low Machines Disabled 45 | . 2 . 2 . . . 6 8 2 3 . 4 . . . 1 16 . 1 . Max in Single Turn 2 | . 1 . 1 . . . 2 1 1 1 . 1 . . . 1 2 . 1 . Garrison Access 3 | . . . . . . . . . . 1 . . . . . . 2 . . . Garrison Relay 4 | . . . . . . . . 4 . . . . . . . . . . . . Phase Generator 1 | . . . . . . . . 1 . . . . . . . . . . . . Machines Repaired . | . . . . . . . . . . . . . . . . . . . . . Machines Dismantled . | . . . . . . . . . . . . . . . . . . . . . Machines Sabotaged . | . . . . . . . . . . . . . . . . . . . . . Overloaded Fab Kills . | . . . . . . . . . . . . . . . . . . . . . Hacking | -11 -10 -10 -9 -9 -9 -8 -8 -8 -8 -7 -7 -7 -7 -7 -7 -6 -6 -6 -6 -6 --------- Run | Yrd Mat Min Mat Min Exi Min Mat Gar Mat Fac Was Fac Low Low Dat Pro Fac Was Fac Low Machines Accessed 83 | . 11 1 9 . 2 . 2 4 3 14 . 9 1 . 3 . 17 . 7 . Terminals 47 | . 8 . 7 . . . 1 4 3 7 . 4 . . . . 9 . 4 . Fabricators 6 | . . . . . . . . . . 2 . 1 . . . . 2 . 1 . Repair Stations 4 | . 1 . . . . . . . . 1 . 1 . . . . 1 . . . Recycling Units 11 | . 2 . 1 . . . . . . 2 . 2 . . . . 2 . 2 . Scanalyzers 3 | . . . 1 . . . . . . 1 . . . . . . 1 . . . Garrison Access 5 | . . . . . . . 1 . . 1 . 1 . . . . 2 . . . Total Hacks 199 | . 23 1 25 . 2 . 4 7 9 36 . 17 1 . 20 . 35 . 19 . Successful 89 | . 12 1 15 . 2 . 2 2 3 9 . 5 1 . 20 . 10 . 7 . Failed 109 | . 11 . 9 . . . 2 5 6 27 . 12 . . . . 25 . 12 . Catastrophic 15 | . 3 . . . . . . 2 . 2 . 3 . . . . 3 . 2 . Database Lockouts 1 | . . . 1 . . . . . . . . . . . . . . . . . Manual 13 | . . . 2 . . . . . 6 1 . . . . . . 4 . . . Terminals 114 | . 18 . 20 . . . 2 7 9 21 . 7 . . . . 19 . 11 . Fabricators 18 | . . . . . . . . . . 4 . 2 . . . . 7 . 5 . Repair Stations 8 | . 2 . . . . . . . . 3 . 1 . . . . 2 . . . Recycling Units 20 | . 3 . 3 . . . . . . 4 . 4 . . . . 3 . 3 . Scanalyzers 7 | . . . 2 . . . . . . 3 . . . . . . 2 . . . Garrison Access 8 | . . . . . . . 2 . . 1 . 3 . . . . 2 . . . Terminal Hacks 67 | . 9 1 13 . 2 . 1 2 3 6 . 2 1 . 20 . 4 . 3 . Record 5 | . . . . . 2 . . . . . . . . . 3 . . . . . Part Schematic 10 | . . . . . . . . . . . . . . . 9 . 1 . . . Robot Schematic 5 | . . . . . . . . . . . . . . . 5 . . . . . Prototype ID Bank 5 | . 2 . . . . . . . . . . . . . 3 . . . . . Open Door 3 | . . 1 . . . . . 1 . . . . 1 . . . . . . . Level Access Points 1 | . . . . . . . . . 1 . . . . . . . . . . . Branch Access Points 3 | . . . 1 . . . 1 . . . . . . . . . . . 1 . Emergency Access Points 2 | . . . 1 . . . . . . . . . . . . . . . 1 . Terminal Index 1 | . . . 1 . . . . . . . . . . . . . . . . . Alert Level 13 | . 1 . 4 . . . . . 2 3 . 1 . . . . 2 . . . Unreport Threat 4 | . . . 2 . . . . . . 2 . . . . . . . . . . Locate Traps 5 | . 3 . 1 . . . . . . 1 . . . . . . . . . . Security Status 1 | . . . . . . . . . . . . . . . . . . . 1 . Investigation Status 1 | . 1 . . . . . . . . . . . . . . . . . . . Hauler Manifests 4 | . 2 . 1 . . . . . . . . 1 . . . . . . . . Registered Components 1 | . . . 1 . . . . . . . . . . . . . . . . . Zone Layout 2 | . . . 1 . . . . . . . . . . . . . 1 . . . Garrison Registry 1 | . . . . . . . . 1 . . . . . . . . . . . . Fabricator Hacks 7 | . . . . . . . . . . . . 2 . . . . 2 . 3 . Network Status 2 | . . . . . . . . . . . . 1 . . . . . . 1 . Load Schematic 2 | . . . . . . . . . . . . . . . . . 1 . 1 . Build 3 | . . . . . . . . . . . . 1 . . . . 1 . 1 . Repair Station Hacks 2 | . 1 . . . . . . . . 1 . . . . . . . . . . Scan Component 1 | . . . . . . . . . . 1 . . . . . . . . . . Refit 1 | . 1 . . . . . . . . . . . . . . . . . . . Recycling Unit Hacks 7 | . 2 . 1 . . . . . . 1 . 1 . . . . 1 . 1 . Retrieve Components 7 | . 2 . 1 . . . . . . 1 . 1 . . . . 1 . 1 . Scanalyzer 2 | . . . 1 . . . . . . . . . . . . . 1 . . . Retrieve Study 2 | . . . 1 . . . . . . . . . . . . . 1 . . . Garrison Access Hacks 4 | . . . . . . . 1 . . 1 . . . . . . 2 . . . Unlock Access 1 | . . . . . . . 1 . . . . . . . . . . . . . Seal Access 3 | . . . . . . . . . . 1 . . . . . . 2 . . . Unauthorized Hacks . | . . . . . . . . . . . . . . . . . . . . . Terminals . | . . . . . . . . . . . . . . . . . . . . . Fabricators . | . . . . . . . . . . . . . . . . . . . . . Repair Stations . | . . . . . . . . . . . . . . . . . . . . . Recycling Units . | . . . . . . . . . . . . . . . . . . . . . Scanalyzers . | . . . . . . . . . . . . . . . . . . . . . Garrison Access . | . . . . . . . . . . . . . . . . . . . . . Data Cores Recovered 4 | . 1 . 2 . . . . . 1 . . . . . . . . . . . Used 1 | . 1 . . . . . . . . . . . . . . . . . . . Hacking Detections 60 | . 8 . 5 . . . 2 4 3 12 . 6 . . . . 14 . 6 . Full Trace Events 13 | . 2 . . . . . . 2 . 3 . 1 . . . . 2 . 3 . Feedback Events 1 | . 1 . . . . . . . . . . . . . . . . . . . Corruption 1 | . 1 . . . . . . . . . . . . . . . . . . . Feedback Blocked . | . . . . . . . . . . . . . . . . . . . . . Robot Schematics Acquired 5 | . . . . . . . . . . . . . . . 5 . . . . . Robots Built 2 | . . . . . . . . . . . . . . . . . 2 . . . Authchips . | . . . . . . . . . . . . . . . . . . . . . Time 58 | . . . . . . . . . . . . . . . . . 58 . . . Total Robot Build Rating 6 | . . . . . . . . . . . . . . . . . 6 . . . Part Schematics Acquired 10 | . . . . . . . . . . . . . . . 9 . 1 . . . Parts Built 3 | . . . . . . . . . . . . 1 . . . . . . 2 . Authchips . | . . . . . . . . . . . . . . . . . . . . . Time 199 | . . . . . . . . . . . . 152 . . . . . . 47 . Total Part Build Rating 15 | . . . . . . . . . . . . 5 . . . . . . 10 . Part Studies Acquired 2 | . . . 1 . . . . . . . . . . . . . 1 . . . Parts Repaired . | . . . . . . . . . . . . . . . . . . . . . Time . | . . . . . . . . . . . . . . . . . . . . . Parts Recycled . | . . . . . . . . . . . . . . . . . . . . . Recycled Matter . | . . . . . . . . . . . . . . . . . . . . . Retrieved Matter . | . . . . . . . . . . . . . . . . . . . . . Retrieved Components 30 | . 16 . 10 . . . . . . 1 . . . . . . 1 . 2 . Parts Scanalyzed . | . . . . . . . . . . . . . . . . . . . . . Part Schematics Acquired . | . . . . . . . . . . . . . . . . . . . . . Parts Damaged . | . . . . . . . . . . . . . . . . . . . . . Bothacking | -11 -10 -10 -9 -9 -9 -8 -8 -8 -8 -7 -7 -7 -7 -7 -7 -6 -6 -6 -6 -6 ------------ Run | Yrd Mat Min Mat Min Exi Min Mat Gar Mat Fac Was Fac Low Low Dat Pro Fac Was Fac Low Used RIF Installer . | . . . . . . . . . . . . . . . . . . . . . Robots Hacked . | . . . . . . . . . . . . . . . . . . . . . Non-combat . | . . . . . . . . . . . . . . . . . . . . . Combat . | . . . . . . . . . . . . . . . . . . . . . Robot Hacks Applied . | . . . . . . . . . . . . . . . . . . . . . Relay Couplers Released 16 | . . . . . . . . 16 . . . . . . . . . . . . Machine Destruction 16 | . . . . . . . . 16 . . . . . . . . . . . . Fabnet Peak Effective % . | . . . . . . . . . . . . . . . . . . . . . Robots Rewired 9 | . . . . . . . . 7 . . . . . . . 2 . . . . Allies Hacked . | . . . . . . . . . . . . . . . . . . . . . Hacks Repelled . | . . . . . . . . . . . . . . . . . . . . . Allies | -11 -10 -10 -9 -9 -9 -8 -8 -8 -8 -7 -7 -7 -7 -7 -7 -6 -6 -6 -6 -6 -------- Run | Yrd Mat Min Mat Min Exi Min Mat Gar Mat Fac Was Fac Low Low Dat Pro Fac Was Fac Low Total Allies 16 | . . . . 4 . . . 7 . . . . . . . 3 2 . . . Largest Group 7 | . . . . 4 4 3 . 7 3 . . . . . . 2 3 . . . Highest-Rated Group 173 | . . . . 71 71 40 . 173 72 . . . . . . 96 71 . . . Highest-Rated Ally 96 | . . . . 31 31 16 . 39 31 . . . . . . 96 29 . . . Initial Warlord ECA Mod 9 | . . . . . . . . . 9 8 8 8 8 8 8 7 7 6 6 6 Warlord Squad Rendezvous 1 | . . . . . . . . . . . . . . . . . 1 . . . Muscle 1 | . . . . . . . . . . . . . . . . . 1 . . . Total Orders . | . . . . . . . . . . . . . . . . . . . . . Ally Attacks 132 | . . . . . . 17 . 69 11 . . . . . . 15 20 . . . Total Damage 2542 | . . . . . . 210 . 1341 206 . . . . . . 462 323 . . . Kills 25 | . . . . . . 3 . 16 2 . . . . . . 3 1 . . . Allies Corrupted . | . . . . . . . . . . . . . . . . . . . . . Allies Melted 1 | . . 1 . . . . . . . . . . . . . . . . . . Intel | -11 -10 -10 -9 -9 -9 -8 -8 -8 -8 -7 -7 -7 -7 -7 -7 -6 -6 -6 -6 -6 ------- Run | Yrd Mat Min Mat Min Exi Min Mat Gar Mat Fac Was Fac Low Low Dat Pro Fac Was Fac Low Active Infowar (turns) 10454 | 22 1360 1130 1358 . . . . . 1 1518 7 1613 1269 14 . . 1523 160 287 192 Optics 118 | . . . . . . . . . . . . . . . . . 118 . . . Sensors 6755 | . . 856 1358 . . . . . . 883 7 1350 1184 14 . . 677 . 234 192 IFF 951 | . . . . . . . . . . . . . . . . . 738 160 53 . Structural 737 | . . . . . . . . . . 459 . . 278 . . . . . . . Traps 3 | . . . . . . . . . 1 . . . . . . . 2 . . . Seismic 1974 | 22 1360 274 . . . . . . . . . . . . . . 105 160 53 . T.N.C. 1822 | . . . . . . . . . . . . 1188 634 . . . . . . . Machine Analysis 491 | . . . . . . . . . . 491 . . . . . . . . . . ECM 4 | . . . . . . . . . . . . . . . . . 4 . . . Robot Analysis Total . | . . . . . . . . . . . . . . . . . . . . . Derelict Logs Recovered 8 | . . 1 . 2 . . . . . . . . 3 1 . 1 . . . . Drone Launches . | . . . . . . . . . . . . . . . . . . . . . Drone Recoveries . | . . . . . . . . . . . . . . . . . . . . . Exploration | -11 -10 -10 -9 -9 -9 -8 -8 -8 -8 -7 -7 -7 -7 -7 -7 -6 -6 -6 -6 -6 ------------- Run | Yrd Mat Min Mat Min Exi Min Mat Gar Mat Fac Was Fac Low Low Dat Pro Fac Was Fac Low Turns Passed 21527 | 118 1671 1396 2563 1268 972 471 1146 2047 635 1931 140 1705 1269 739 110 685 1945 228 296 192 Spaces Moved 13383 | 93 741 625 1028 599 475 191 393 1016 326 1248 96 908 1045 574 86 283 1883 559 713 501 Core 61 | 8 . . . . . . . . . . . . . . . . 53 . . . Treads 14 | . . . . . . 12 2 . . . . . . . . . . . . . Legs 3927 | . . . . . . . . . . 135 96 877 1045 574 86 283 831 . . . Wheels 6609 | 85 741 625 1028 599 475 179 391 1016 326 1113 . 31 . . . . . . . . Hover . | . . . . . . . . . . . . . . . . . . . . . Flight 2772 | . . . . . . . . . . . . . . . . . 999 559 713 501 Fastest Speed 26 | 50 80 140 140 205 205 205 130 145 145 115 130 107 105 105 120 122 26 27 27 27 Average Speed 129 | 77 191 197 208 205 205 212 205 153 145 116 130 134 106 119 120 154 71 27 27 27 Slowest Speed 320 | 80 215 215 230 205 205 320 240 235 145 145 130 265 185 120 120 265 260 107 27 27 Overloaded Moves 40 | . . . . . . . . . . . . . . . . . 40 . . . Propulsion Burnouts . | . . . . . . . . . . . . . . . . . . . . . Robots Hopped 1 | . . . . . . . . . . . . . . . . . . . 1 . Potential Cave-ins 2 | . . . . . . . . . . . . . . . . . . . . 2 Cave-ins Triggered . | . . . . . . . . . . . . . . . . . . . . . Exploration Rate (%) 62 | 5 93 90 86 86 90 56 47 92 33 41 84 22 97 63 70 55 50 96 26 40 Regions Visited 20 Branch Regions 9 Pre-discovered Areas 5 | . . 1 . . . . . . . . . . 2 1 1 . . . . . Known Exits Taken 11 | . 1 1 1 . . . 1 . 1 . . 1 1 1 1 1 . . 1 . Unknown Exits Taken 4 | 1 . . . 1 1 1 . . . . . . . . . . . . . . Scrap Searched 8 | . . 1 . 1 . 1 . . . . . . 3 2 . . . . . . Spaces Dug 36 | . . . . . . . . . . . . 3 3 . . . 10 3 4 13 Terrain Destroyed 715 | . . 1 78 21 . 104 113 106 45 36 2 30 4 31 . 21 95 3 4 21 Melee 29 | . . . . . . . . . . . . 2 1 . . . 6 3 4 13 Projectile 71 | . . 1 . . . . 7 4 5 13 2 11 3 4 . 4 9 . . 8 AOE 610 | . . . 78 21 . 104 106 102 39 23 . 14 . 27 . 16 80 . . . Terrain Rammed . | . . . . . . . . . . . . . . . . . . . . . Walls Destroyed . | . . . . . . . . . . . . . . . . . . . . . Machines Disabled . | . . . . . . . . . . . . . . . . . . . . . Actions | -11 -10 -10 -9 -9 -9 -8 -8 -8 -8 -7 -7 -7 -7 -7 -7 -6 -6 -6 -6 -6 --------- Run | Yrd Mat Min Mat Min Exi Min Mat Gar Mat Fac Was Fac Low Low Dat Pro Fac Was Fac Low Total 15926 | 117 894 728 1295 631 474 231 589 1307 407 1516 103 1172 1161 605 93 422 2251 628 778 524 Wait 693 | 5 64 56 93 21 . . 33 28 18 57 1 80 56 2 . 33 67 46 33 . Move 13363 | 92 740 624 1027 598 474 190 392 1015 325 1248 95 907 1044 573 85 282 1883 558 710 501 Hop 1 | . . . . . . . . . . . . . . . . . . . 1 . Pick Up 189 | 4 19 8 29 2 . 4 20 15 6 23 . 7 12 2 1 4 30 1 2 . Fast Attach 121 | 7 3 . 6 . . 2 6 7 6 11 1 16 2 1 3 7 32 7 4 . Attach 127 | . 6 5 7 . . 1 13 7 1 11 2 15 6 8 . 13 30 . 1 1 Detach 44 | . 2 . 2 . . . 1 . . 1 . 10 4 4 . 5 13 1 . 1 Swap 181 | . 9 3 21 4 . 7 12 17 2 36 1 22 10 . . 6 30 . 1 . Drop 201 | . 3 3 28 1 . 5 22 20 10 34 . 10 4 . 4 1 39 10 7 . Fire 785 | 9 48 29 82 5 . 22 88 116 39 94 3 77 4 14 . 58 89 . . 8 Melee 123 | . . . . . . . 2 7 . 1 . 26 14 . . . 36 5 19 13 Ram . | . . . . . . . . . . . . . . . . . . . . . Kick 2 | . . . . . . . . . . . . 2 . . . . . . . . Crush . | . . . . . . . . . . . . . . . . . . . . . Escape Stasis 9 | . . . . . . . . 8 . . . . . . . . 1 . . . Rewire 80 | . . . . . . . . 67 . . . . . . . 13 . . . . Trap 7 | . . . . . . . . . . . . . 5 1 . . 1 . . . Miscellaneous . | . . . . . . . . . . . . . . . . . . . . . Route ------- -11/Scrapyard -10/Materials (discovered 6 exits: *Mat x3 / *Min x2 / [*Sub]) -10/Mines (discovered 3 exits: *Mat x2 / [*Sub]) -9/Materials (discovered 6 exits: *Mat x2 / *Min x2 / *Sto x2) -9/Mines (discovered 2 exits: *Mat / *Exi) -9/Exiles -8/Mines -8/Materials (discovered 3 exits: *Fac x2 / Gar) -8/Garrison (discovered 3 exits: *Mat x3) -8/Materials (discovered 3 exits: *Fac x3) -7/Factory (discovered 2 exits: *Low x2) -7/Waste -7/Factory -7/Lower Caves -7/Lower Caves (discovered 2 exits: *Fac / *Dat) -7/Data Miner -6/Proximity Caves -6/Factory (discovered 4 exits: *Fac x3 / *Low) -6/Waste -6/Factory (discovered 2 exits: *Low x2) -6/Lower Caves History --------- Turn | Location | Event 5 | -11/Scrapyard | Discovered new exit (range 16) 119 | -11/Scrapyard | Entered Materials 333 | -10/Materials | Build established: Mutant 362 | -10/Materials | Discovered new exit (range 14) 370 | -10/Materials | Discovered new exit (range 10) 578 | -10/Materials | Discovered new exit (range 14) 1025 | -10/Materials | Discovered new exit (range 13) 1220 | -10/Materials | Discovered new exit (range 16) 1402 | -10/Materials | Discovered new exit (range 12) 1578 | -10/Materials | Identified exit to Materials 1654 | -10/Materials | Identified exit to Mines 1790 | -10/Materials | Entered Mines 1791 | -10/Mines | Assembled infested the area 1796 | -10/Mines | Assisted by a Guerilla fighting off Assembled 1801 | -10/Mines | Met a Derelict bent on vengeance 1901 | -10/Mines | Learned location of Zion (-6) 1961 | -10/Mines | Met a Derelict who couldn't figure out how to use a Trap Extractor 2549 | -10/Mines | Discovered exit to Materials (range 12) 2749 | -10/Mines | Discovered new exit (range 10) 3040 | -10/Mines | Discovered exit to Materials (range 11) 3186 | -10/Mines | Entered Materials 3186 | -9/Materials | Evolved 2 slots: Utility x1, Weapon x1 3648 | -9/Materials | Central database locked down 3876 | -9/Materials | Build established: Skirmisher 3946 | -9/Materials | Identified exit to Mines 3946 | -9/Materials | Identified exit to Storage 4454 | -9/Materials | Build established: Tank 4895 | -9/Materials | Discovered new exit (range 15) 5494 | -9/Materials | Discovered new exit (range 16) 5749 | -9/Materials | Entered Mines 5847 | -9/Mines | Found a hidden stash of uninstalled traps 5914 | -9/Mines | Learned Materials security intel 5989 | -9/Mines | Deemed a non-threat by the Exiles lab entrance 5989 | -9/Mines | Discovered new exit (range 5) 6133 | -9/Mines | Learned location of 1 exit from Materials 6568 | -9/Mines | Assisted by bots powering up and referring to "LRC-V3" 6711 | -9/Mines | Discovered new exit (range 14) 6858 | -9/Mines | Received a Mining Laser from a helpful Derelict 7017 | -9/Mines | Entered Exiles 7017 | -9/Exiles | Found Exiles lab abandoned 7017 | -9/Exiles | Accompanied by 4 allies 7967 | -9/Exiles | Discovered new exit (range 12) 7989 | -9/Exiles | Entered Mines 7989 | -8/Mines | Accompanied by 3 allies 8301 | -8/Mines | Discovered new exit (range 14) 8375 | -8/Mines | Build established: Gunner 8460 | -8/Mines | Entered Materials 8460 | -8/Materials | Evolved 2 slots: Propulsion x1, Utility x1 8461 | -8/Materials | Identified exit to Factory 8623 | -8/Materials | Destroyed 7 combat bots 8630 | -8/Materials | Lost 5 parts (2n1u2w) 8802 | -8/Materials | Discovered exit to Factory (range 11) 8987 | -8/Materials | Build established: Scavenger-Gunner 9502 | -8/Materials | Build established: Mutant 9597 | -8/Materials | Identified exit to Garrison 9606 | -8/Materials | Entered Garrison 9753 | -8/Garrison | Spotted B-75 Beast 9837 | -8/Garrison | Lost 3 parts (1u2w) 9856 | -8/Garrison | Core integrity fell below 50% 9857 | -8/Garrison | Destroyed B-75 Beast 10055 | -8/Garrison | Discovered new exit (range 60) 10055 | -8/Garrison | Discovered new exit (range 67) 10055 | -8/Garrison | Discovered new exit (range 45) 10078 | -8/Garrison | Triggered checkpoint 10169 | -8/Garrison | Garrison Relay disabled 10404 | -8/Garrison | Triggered checkpoint 10418 | -8/Garrison | Triggered checkpoint 10428 | -8/Garrison | Triggered checkpoint 10522 | -8/Garrison | Triggered checkpoint 10544 | -8/Garrison | Garrison Relay disabled 10555 | -8/Garrison | Build established: Commander-Tank 10886 | -8/Garrison | Triggered checkpoint 10950 | -8/Garrison | Triggered checkpoint 10973 | -8/Garrison | Build established: Scavenger-Tank 11063 | -8/Garrison | Identified exit to Materials 11214 | -8/Garrison | Garrison Relay disabled 11277 | -8/Garrison | Build established: Scavenger-Gunner 11400 | -8/Garrison | Phase Generator disabled 11606 | -8/Garrison | Garrison Relay disabled 11653 | -8/Garrison | Entered Materials 11653 | -8/Materials | Accompanied by 3 allies 12288 | -8/Materials | Entered Factory 12288 | -7/Factory | Evolved 2 slots: Propulsion x1, Utility x1 12362 | -7/Factory | Discovered new exit (range 11) 12408 | -7/Factory | Identified exit to Lower Caves 12529 | -7/Factory | Garrison activated, responded to threat 12700 | -7/Factory | Discovered exit to Lower Caves (range 4) 13501 | -7/Factory | Cargo convoy interrupted 14219 | -7/Factory | Sucked down chute 14219 | -7/Factory | Entered Waste 14234 | -7/Waste | EMP discharged 14234 | -7/Waste | System corruption reached 10% 14248 | -7/Waste | Spotted C-40 Crusher 14260 | -7/Waste | Spotted C-40 Crusher 14275 | -7/Waste | Spotted C-40 Crusher 14275 | -7/Waste | Spotted C-40 Crusher 14310 | -7/Waste | Spotted C-40 Crusher 14311 | -7/Waste | Crushed by Compactor (1 part destroyed, 1 dropped) 14314 | -7/Waste | Crushed by Compactor (1 part destroyed, 2 dropped) 14334 | -7/Waste | EMP discharged 14347 | -7/Waste | Discovered new exit (range 10) 14357 | -7/Waste | Identified exit to Factory 14359 | -7/Waste | Entered Factory 14616 | -7/Factory | Build established: Mutant 15140 | -7/Factory | Discovered exit to Lower Caves (range 15) 15501 | -7/Factory | Fabricated F-cell Engine? 15852 | -7/Factory | Lost 5 parts (2n1u2w) 16064 | -7/Factory | Entered Lower Caves 16171 | -7/Lower Caves | Spotted B-75 Beast 16223 | -7/Lower Caves | Build established: Assassin 16310 | -7/Lower Caves | Destroyed B-75 Beast 16313 | -7/Lower Caves | Met a Warlord Commander 16314 | -7/Lower Caves | Learned location of Warlord (-4) 16315 | -7/Lower Caves | Warlord Commander delivered Encrypted Comm Array 16318 | -7/Lower Caves | Found Encrypted Comm Array 16541 | -7/Lower Caves | Found DCF Scrap (13 items) 16593 | -7/Lower Caves | Ambushed by wild Derelicts 17030 | -7/Lower Caves | Build established: Mutant 17043 | -7/Lower Caves | Learned Factory garrison access intel 17112 | -7/Lower Caves | Discovered new exit (range 14) 17113 | -7/Lower Caves | Encountered a Warlord checkpoint 17146 | -7/Lower Caves | Identified exit to Lower Caves 17333 | -7/Lower Caves | Entered another Lower Caves area 17482 | -7/Lower Caves | Discovered new exit (range 8) 17554 | -7/Lower Caves | Encountered a Warlord checkpoint 17995 | -7/Lower Caves | Discovered new exit (range 16) 18035 | -7/Lower Caves | Identified exit to Data Miner 18052 | -7/Lower Caves | Learned location of Extension (-4) 18072 | -7/Lower Caves | Entered Data Miner 18074 | -7/Data Miner | Discovered new exit (range 6) 18099 | -7/Data Miner | Met Data Miner 18127 | -7/Data Miner | Acquired the access code to Warlord's prototype stash 18127 | -7/Data Miner | Learned location of Section 7 (-3) 18144 | -7/Data Miner | Received God Mode back door access code from Data Miner 18181 | -7/Data Miner | Identified exit to Proximity Caves 18182 | -7/Data Miner | Entered Proximity Caves 18197 | -6/Proximity Caves | Core integrity fell below 50% 18302 | -6/Proximity Caves | Attracted the attention of an 0b10 checkpoint 18457 | -6/Proximity Caves | Spotted B-75 Beast 18478 | -6/Proximity Caves | Escorted by Enhanced Grunt 18491 | -6/Proximity Caves | Allies destroyed B-75 Beast 18498 | -6/Proximity Caves | Lost 4 parts (2n1u1w) 18538 | -6/Proximity Caves | Attracted the attention of an 0b10 outpost 18635 | -6/Proximity Caves | System corruption reached 30% 18637 | -6/Proximity Caves | Found Corrupted Prototype Device 18637 | -6/Proximity Caves | Identified Exp. Thermal Shield 18650 | -6/Proximity Caves | Lost 6 parts (2n2u2w) 18772 | -6/Proximity Caves | Identified exit to Factory 18867 | -6/Proximity Caves | Entered Factory 18867 | -6/Factory | Accompanied by 2 allies 18867 | -6/Factory | Evolved 2 slots: Propulsion x1, Utility x1 18868 | -6/Factory | Loaded intel: 4 garrison access locations 18891 | -6/Factory | Build established: Scavenger-Gunner 18973 | -6/Factory | Fabricated H-55 Commando (x2) 19172 | -6/Factory | Lost 3 allies 19213 | -6/Factory | Joined by Warlord Muscle squad 19401 | -6/Factory | Discovered new exit (range 8) 19410 | -6/Factory | Identified exit to Factory 19422 | -6/Factory | Build established: Scavenger-Mutant 19451 | -6/Factory | Spotted B-75 Beast 19530 | -6/Factory | P-60 Hacker assimilated allied KD-D7K(b) 20111 | -6/Factory | Lost 3 parts (3u) 20186 | -6/Factory | Cargo convoy interrupted 20251 | -6/Factory | Destroyed 9 combat bots 20257 | -6/Factory | Lost 4 parts (1u3w) 20288 | -6/Factory | Found Prototype Launcher 20288 | -6/Factory | Identified Mni. Smartbomb Launcher 20366 | -6/Factory | Core integrity fell below 50% 20369 | -6/Factory | Discovered exit to Factory (range 11) 20378 | -6/Factory | Core integrity fell below 20% 20381 | -6/Factory | Released all parts (7) 20408 | -6/Factory | Lost 11 parts (1p4n1u5w) 20427 | -6/Factory | Discovered new exit (range 13) 20617 | -6/Factory | First assault squad dispatched 20644 | -6/Factory | Build established: Sprinter 20746 | -6/Factory | Discovered exit to Factory (range 13) 20812 | -6/Factory | Manually triggered Chute Trap 20812 | -6/Factory | Sucked down chute 20812 | -6/Factory | Entered Waste 20812 | -6/Waste | The area was eerily silent 20998 | -6/Waste | Discovered new exit (range 15) 21040 | -6/Waste | Entered Factory 21100 | -6/Factory | Fabricated Adv. Sensor Array (x2) 21114 | -6/Factory | Found Prototype Processor 21114 | -6/Factory | Identified Exp. Targeting Computer 21190 | -6/Factory | Identified exit to Lower Caves 21198 | -6/Factory | Watched by a mysterious "MATRIX" hacker 21336 | -6/Factory | Entered Lower Caves 21342 | -6/Lower Caves | Encountered a Warlord checkpoint 21528 | -6/Lower Caves | Spotted B-75 Beast 21528 | -6/Lower Caves | Destroyed by B-75 Beast with Magnetic Acceleration Cannon Last Messages --------------- 21278_ ALERT: Hostiles spotted, dispatching reinforcements to Terminal F009. 21279_ Connecting with Repair Station... 21280_ Dropped Angular Momentum Engine. 21286_ ALERT: Potential suspicious activity detected, Programmers report to Factory Zone 6E. 21308_ W-25 Informer destroyed. 21309_ R-10 Processor collects Unknown Hover Unit. 21313_ R-10 Processor collects Lgt. Deuterium Engine. 21318_ Sneak attack on A-15 Conveyor. 21318_ A-15 Conveyor destroyed. 21321_ Acquired 10 matter. 21322_ K-01 Serf cleans the Matter Pump. 21326_ K-01 Serf collects debris. LOCATION=LOWER CAVES GOAL=ESCAPE 21342_ 6H-SCY(M): "This area isn't safe." Map ----- +----------------------------------------------------+ | ?????????????????????????????????????????????????? | | ?????????????????????????????????????????????????? | | ?????????????????????????????????????????????????? | | ?????????????????????????????????????????????????? | | ?????????????????????????????????????????????????? | | ?????????????????????????????????????????????????? | | ?????????????????????????????????????????# ??????? | | ????????????????????????????????????????? ??????? | | ????????????????????????????????????????? ??????? | | ????????????????????????????????????????# ##????? | | ????????????????????????????????????????# #????? | | ???????????????????????????????###?????## #????? | | ???????????????????????????????? ????# ##???? | | ????????????????????????????????? ???# ##??? | | ?????????????????????????????????? ??# #??? | | ?????????????????????????????????? ### #??? | | ????????????????????????????????? #??? | | ???????????????????????????????? BB ##?? | | ??????????????????????????????? BB ?# ??? | | ?????????????????????????????? ???# ???? | | ???????????????????#?????????# ????## #????? | | ???????????????????# ??????## #?????# #?????? | | ???????????????????# ##### ##????# ##????? | | ???????????????????# ?? ????# ##?### | | ???????????????????# ?% ???? ????# ### | | ????????????????????#"#?#@#????? #???# ## | | ?????????????????????# ## ##???? ????# ## | | ??????????????????????# # #???? #????# | | ???????????????????????#;;###### #????# | | ?????????????????????#### #?????## | | ?????????????????????#"# ^## ############ | | ??????????????????????# #^# # ## | | ???????????????????#### # # ## | | ???????????????????#"# # #### | | ??????????????????### ^ "" #??## | | ??????????????????#"# # #^ # """"" #???# | | ????????????????#### # # # """" ##### | | ????????????????#"# " ## | | ?????????????????# ### "" "" ##### #? | | ?????????????????# ##?# ## """ "#??# #? | | ????????????????#"# #?# ### "" " "#??# ###? | | ????????????????### ### ###?# #### ##?? | | ??????????????????# ######???# ## ### | | ??????????????????# #??????######## ## | | ?????????????????#"# #??????#"# ## | | ?????????????????#### ##???????# ## # | | ???????????????????#"###???????## ## ######## | | ???????????????????##??????????#" #??????# | | ???????????????????????????????## #??????# | | ????????????????????????????????## ##??????# | +----------------------------------------------------+ Best States ------------- Heat Dissipation 75 Energy Generation 21 Energy Capacity 500 Matter Stores 300 Matter Capacity 300 Sight Range 18 Robot Scan Range 16 Terrain Scan Density 210 Armor Coverage 675 Resistance: KI 20 Resistance: TH 30 Resistance: EM 20 Propulsion Shielding 66 Evasion (%) 64 Targeting Accuracy 8 Melee Accuracy 8 Core Analysis 6 Recoil Reduction 3 Offensive Hacking 10 Trap Extractor Capacity 6 Item Schematics ----------------- Combat Drone Bay | -7/Data Miner | Free Lgt. Regenerative Plating | -7/Data Miner | Free Cld. Aerolev Unit | -7/Data Miner | Free Gravity Neutralizer | -7/Data Miner | Free Force Rifle | -7/Data Miner | Free Hvy. Treads | -7/Data Miner | Free Lyr. Heavy Armor Plating | -7/Data Miner | Free Imp. Plasma Cutter | -7/Data Miner | Free Jamming Amplifier | -7/Data Miner | Free Adv. Sensor Array | -6/Factory | Hacked Robot Schematics ------------------ S-27 Virus | -7/Data Miner | Free B-48 Gladiator | -7/Data Miner | Free D-53 Grenadier | -7/Data Miner | Free G-50 Soldier | -7/Data Miner | Free X-62 Marksman | -7/Data Miner | Free Fabricated ------------ F-cell Engine | x1 | -7/Factory | Preloaded H-55 Commando | x2 | -6/Factory | Preloaded Adv. Sensor Array | x2 | -6/Factory Repaired ---------- Nothing Studied --------- Wheel | -9/Materials | Hacked VTOL Module | -6/Factory | Hacked Alien Tech Used ----------------- None Achievements -------------- None Challenges ------------ None Game ------ Seed StasisFusionReprisal Manual? 0 Play Time 03:17:48 Cumulative 967.6 hours Start 2026.07.12 @ 20:33:56 End 2026.07.24 @ 00:13:03 Sessions 3 Manual Loads 0 Difficulty Rogue Special Mode None Game No. 269 Rogue 269 Adventurer 0 Explorer 0 Win Type - Total 40 Types 12/8/9/1/2/0/4/1/1/2 Lore% 97 Gallery% 90 Achievement% 86 Wizard Run 0 Options --------- Layout 1 ASCII 0 Keyboard 0 Movement Mouse Keybinds 0 Fullscreen 2 Font 32/SmallcapsGlow Map View 50x35 Zoom Use 0% Tactical HUD 1 Map Filters NONE Filters NONE Steam 1 RUN: 6887a692-31ce-4aa1-8ec4-77d6263d9ad4